Cogmind - Beta 10.2 @@@ ROGUE MODE // 2020.12.12 @ 16:17:10 Player: Demise Result: Destroyed by 8R-AWN with 8R-AWN's Boregun Performance ------------- Evolutions (0) 0 Regions Visited (3) 600 Robots Destroyed (23) 115 Value Destroyed (463) 463 Prototype IDs (23) 460 Alien Tech Used (0) 0 Bonus (335) 335 TOTAL SCORE: 1973 Bonus ------- Follower Combat Kills 35 Aligned with FarCom 300 Cogmind --------- Core Integrity 0/250 Matter 163/300 Energy 78/100 System Corruption 0% Temperature Cool (0) Movement Core (600) Ox11 Location -10/Exiles Parts ------- > --- POWER (1) -------- (None) > --- PROPULSION (2) --- (None) > --- UTILITY (2) ------ High-capacity Storage Unit Targeting Computer > --- WEAPON (2) ------- Light Assault Rifle Light Assault Rifle > --- INVENTORY (12) --- (None) Peak State ------------ > --- POWER ------------ Light Ion Engine > --- PROPULSION ------- Light Treads Light Treads > --- UTILITY ---------- High-capacity Storage Unit High-capacity Storage Unit > --- WEAPON ----------- Assault Rifle Heavy Assault Rifle > --- INVENTORY -------- Large Storage Unit Large Storage Unit Medium Matter Pod Medium Matter Pod Targeting Computer Light Armor Plating Light Armor Plating Chronowheel Guided Plasma Cannon YOLO Cannon Light Assault Rifle Light Assault Rifle Light Assault Rifle Light Assault Rifle Light Assault Rifle Grenade Launcher EMP Trap EMP Trap [Rating: 13] Favorites ----------- Power Light Ion Engine Engine Light Ion Engine Power Core Light Nuclear Core Propulsion Light Treads Treads Light Treads Leg Aluminum Leg Utility Large Storage Unit Device Improved Terrain Scanner Storage Large Storage Unit Processor Targeting Computer Protection Weapon Shielding Weapon Light Assault Rifle Energy Cannon Beam Cannon Ballistic Gun Light Assault Rifle Launcher Grenade Launcher Build | -11 -10 -10 -10 ------- Run | Scr Mat Min Exi Slots Evolved . | . . . . Power . | . . . . Propulsion . | . . . . Utility . | . . . . Weapon . | . . . . Parts Attached 34 | 1 7 11 15 Power 5 | . 1 3 1 Engine 3 | . 1 2 . Core 2 | . . 1 1 Reactor . | . . . . Propulsion 3 | . 2 1 . Treads 3 | . 2 1 . Leg . | . . . . Wheel . | . . . . Hover . | . . . . Flight . | . . . . Utility 11 | 1 2 1 7 Device 1 | 1 . . . Storage 6 | . 1 1 4 Processor 1 | . . . 1 Hackware . | . . . . Protection 3 | . 1 . 2 Artifact . | . . . . Weapon 15 | . 2 6 7 Energy Gun . | . . . . Energy Cannon 1 | . 1 . . Ballistic Gun 13 | . 1 6 6 Ballistic Cannon . | . . . . Launcher 1 | . . . 1 Special Weapon . | . . . . Impact Weapon . | . . . . Slashing Weapon . | . . . . Piercing Weapon . | . . . . Special Melee Weapon . | . . . . Unidentified Prototypes . | . . . . Parts Lost 15 | . 1 3 11 Power 3 | . . 1 2 Propulsion 2 | . . . 2 Utility 2 | . . . 2 Weapon 8 | . 1 2 5 Highest Loss Streak 6 | . 1 2 6 Average Slot Usage (%) 98 | . 100 99 97 Engine 13 | . 14 12 13 Treads 27 | . 26 28 26 Device 1 | . 6 . . Storage 23 | . 14 25 26 Protection 2 | . 7 2 1 Energy Cannon 1 | . 9 . . Ballistic Gun 26 | . 18 28 27 Naked Turns . | . . . . Heaviest Build 73 | 12 24 40 73 Greatest Support 40 | 20 40 40 40 Greatest Overweight (x) 3 | . . . 3 Average Overweight (x) . | . . . . Largest Inventory Capacity 20 | 6 10 16 20 Average Capacity 14 | 6 6 15 18 Most Carried 19 | 6 10 16 19 Average Carried 12 | 6 6 14 13 Final Capacity 16 | 6 10 16 12 Final Carried 16 | 6 10 16 . Class Distribution -------------------- 68% | Mutant 31% | Hauler-Mutant Dominant Class ---------------- Mutant | -10/Materials Mutant | -10/Mines Hauler-Mutant | -10/Exiles Resources | -11 -10 -10 -10 ----------- Run | Scr Mat Min Exi Matter Collected 632 | 224 100 183 125 Remotely . | . . . . Salvage Created 698 | 67 335 279 17 Parts 53 | 3 23 27 . Haulers Intercepted . | . . . . Recyclers Shooed . | . . . . Parts Field Recycled . | . . . . Retrieved Matter . | . . . . Parts Self-Destructed . | . . . . Prevented . | . . . . Kills | -11 -10 -10 -10 ------- Run | Scr Mat Min Exi Combat Hostiles Destroyed 20 | . 9 8 3 Guns 12 | . 3 8 1 Cannons 6 | . 6 . . AOE 2 | . . . 2 Classes Destroyed 9 | 2 4 2 1 Builder 1 | . . 1 . Tunneler 1 | 1 . . . Recycler 2 | 1 . 1 . Operator 1 | . 1 . . Watcher 1 | . 1 . . Swarmer 9 | . 3 6 . Grunt 6 | . 6 . . Sentry 2 | . . 2 . Assembled 3 | . . . 3 Best Kill Streak 3 | 2 3 3 3 Combat Bots Only 3 | . 3 3 3 Max Kills in Single Turn 2 | 1 1 1 2 Gunslinging . | . . . . Exploded 2 | . . . 2 Melee . | . . . . Uniques/NPCs Destroyed . | . . . . Combat | -11 -10 -10 -10 -------- Run | Scr Mat Min Exi Damage Taken 1923 | . 407 589 927 Core 253 | . 32 73 148 Absorbed by Shields . | . . . . Core Remaining (%) 100 | 100 . . . Volleys Fired 109 | 7 31 36 35 Largest 2 | 2 2 2 2 Hottest 80 | 40 80 43 43 Shots Fired 212 | 14 62 72 64 Gun 184 | 14 35 72 63 Cannon 27 | . 27 . . Launcher 1 | . . . 1 Special . | . . . . Kinetic 184 | 14 35 72 63 Thermal 27 | . 27 . . Explosive 1 | . . . 1 Electromagnetic . | . . . . Robot Hit Streak 16 | 7 14 10 16 Robot Miss Streak 3 | 1 3 3 1 Penetration Max . | . . . . Secondary Targets 2 | . . 2 . Max Gunslinging Chain 1 | . . 1 . Shots Hit Robots 145 | 10 40 44 51 Core Hits 47 | 3 16 18 10 Critical Hits 4 | . . 2 2 Critical Kills 1 | . . 1 . Critical Parts Destroyed 1 | . . 1 . Melee Attacks . | . . . . Impact . | . . . . Slashing . | . . . . Piercing . | . . . . Sneak Attacks . | . . . . Combat Hostiles . | . . . . Follow-up Attacks . | . . . . Damage Inflicted 1549 | 87 522 350 590 Guns 1114 | 87 140 350 537 Cannons 382 | . 382 . . Explosions 53 | . . . 53 Melee . | . . . . Ramming . | . . . . Kinetic 1114 | 87 140 350 537 Thermal 382 | . 382 . . Explosive 53 | . . . 53 Electromagnetic . | . . . . Impact . | . . . . Slashing . | . . . . Piercing . | . . . . Highest Corruption . | . . . . Average Corruption . | . . . . Corruption Purged . | . . . . Overload Shots . | . . . . Overflow Damage 7 | . 7 . . Projectiles 7 | . 7 . . Explosions . | . . . . Melee . | . . . . Knockbacks . | . . . . Impact . | . . . . Kinetic . | . . . . Secondary . | . . . . Self-Inflicted Damage . | . . . . Shots . | . . . . Rammed . | . . . . Targets Rammed . | . . . . Kicked . | . . . . Crushed . | . . . . Highest Temperature 240 | . 240 35 25 Average Temperature 66 | . 86 14 11 Received Heat Transfer 168 | . 87 81 . Siege Activations . | . . . . Robots Corrupted . | . . . . Combat Hostiles . | . . . . Parts Fried . | . . . . Impact Corruptions . | . . . . Robots Melted . | . . . . Combat Hostiles . | . . . . Parts Melted . | . . . . Heat Transferred 814 | . 814 . . Parts Sabotaged . | . . . . Parts Stolen . | . . . . Parts Stripped . | . . . . Power Chain Reactions . | . . . . Missiles Intercepted . | . . . . Alert | -11 -10 -10 -10 ------- Run | Scr Mat Min Exi Peak Influence 262 | 10 262 172 . Initial 49 | . 6 49 . Average 75 | 5 123 55 . Maximum Alert Level 1 | . 1 . . Low Security (%) 96 | 100 89 100 . Level 1 3 | . 10 . . Level 2 . | . . . . Level 3 . | . . . . Level 4 . | . . . . Level 5 . | . . . . High Security . | . . . . Max Security . | . . . . Squads Dispatched 3 | . 3 . . Investigation 2 | . 2 . . Extermination . | . . . . Reinforcement 1 | . 1 . . Assault . | . . . . Garrison . | . . . . Intercept . | . . . . Construction Impeded . | . . . . Haulers Reinforced . | . . . . Stealth | -11 -10 -10 -10 --------- Run | Scr Mat Min Exi Distress Signals 2 | . 2 . . Communications Jammed . | . . . . Distress Signals . | . . . . Times Spotted 29 | . 12 13 4 Peak Tracking Total 11 | . 4 3 11 Tactical Retreats 2 | . 1 . 1 Traps | -11 -10 -10 -10 ------- Run | Scr Mat Min Exi Traps Triggered 1 | . 1 . . Indirectly . | . . . . Trap Hack Attempts . | . . . . Triggered . | . . . . Disarmed . | . . . . Reprogrammed . | . . . . Reused 2 | . . . 2 Traps Extracted . | . . . . Installed 5 | . . . 5 Triggered . | . . . . Exploded 3 | . . . 3 Machines | -11 -10 -10 -10 ---------- Run | Scr Mat Min Exi Machines Disabled 5 | . 1 . 4 Max in Single Turn 2 | . 1 . 2 Machines Sabotaged . | . . . . Garrisons Compromised . | . . . . Overloaded Fab Kills . | . . . . Fab Network Shutdowns . | . . . . Hacking | -11 -10 -10 -10 --------- Run | Scr Mat Min Exi Machines Accessed 5 | . 3 . 2 Terminals 2 | . 2 . . Fabricators . | . . . . Repair Stations . | . . . . Recycling Units 1 | . 1 . . Scanalyzers . | . . . . Garrison Access . | . . . . Total Hacks 30 | . 6 . 24 Successful 27 | . 3 . 24 Failed 3 | . 3 . . Catastrophic 1 | . 1 . . Database Lockouts . | . . . . Manual 4 | . 3 . 1 Terminals 4 | . 4 . . Fabricators . | . . . . Repair Stations . | . . . . Recycling Units 2 | . 2 . . Scanalyzers . | . . . . Garrison Access . | . . . . Terminal Hacks 25 | . 1 . 24 Record 23 | . . . 23 Branch Access Points 1 | . 1 . . EX-Prototype ID Bank 1 | . . . 1 Fabricator Hacks . | . . . . Repair Station Hacks . | . . . . Recycling Unit Hacks 1 | . 1 . . Report Inventory 1 | . 1 . . Scanalyzer . | . . . . Garrison Access Hacks . | . . . . Unauthorized Hacks 1 | . 1 . . Terminals . | . . . . Fabricators . | . . . . Repair Stations . | . . . . Recycling Units 1 | . 1 . . Tunnel 1 | . 1 . . Scanalyzers . | . . . . Garrison Access . | . . . . Data Cores Recovered . | . . . . Used . | . . . . Hacking Detections 3 | . 3 . . Full Trace Events 1 | . 1 . . Feedback Events . | . . . . Feedback Blocked . | . . . . Robot Schematics Acquired . | . . . . Robots Built . | . . . . Matter . | . . . . Time . | . . . . Total Robot Build Rating . | . . . . Part Schematics Acquired . | . . . . Parts Built . | . . . . Matter . | . . . . Time . | . . . . Total Part Build Rating . | . . . . Parts Repaired . | . . . . Time . | . . . . Parts Recycled . | . . . . Recycled Matter . | . . . . Retrieved Matter . | . . . . Retrieved Components . | . . . . Parts Scanalyzed . | . . . . Part Schematics Acquired . | . . . . Parts Damaged . | . . . . Bothacking | -11 -10 -10 -10 ------------ Run | Scr Mat Min Exi Used RIF Installer . | . . . . Robots Hacked . | . . . . Non-combat . | . . . . Combat . | . . . . Robot Hacks Applied . | . . . . Relay Couplers Released . | . . . . Robots Rewired . | . . . . Allies Hacked . | . . . . Hacks Repelled . | . . . . Allies | -11 -10 -10 -10 -------- Run | Scr Mat Min Exi Total Allies 4 | . . 4 . Largest Group 4 | . . 4 4 Highest-Rated Group 71 | . . 71 71 Highest-Rated Ally 31 | . . 31 31 Total Orders 3 | . . . 3 STAY 3 | . . . 3 Ally Attacks 23 | . . 11 12 Total Damage 186 | . . 121 65 Kills 5 | . . 5 . Allies Corrupted . | . . . . Allies Melted . | . . . . Intel | -11 -10 -10 -10 ------- Run | Scr Mat Min Exi Robot Analysis Total . | . . . . Derelict Logs Recovered 1 | . . 1 . Drone Launches . | . . . . Drone Recoveries . | . . . . Exploration | -11 -10 -10 -10 ------------- Run | Scr Mat Min Exi Turns Passed 3417 | 30 603 1308 1476 Spaces Moved 1759 | 9 303 732 715 Core 2 | . . . 2 Treads 1714 | . 269 732 713 Legs 43 | 9 34 . . Wheels . | . . . . Hover . | . . . . Flight . | . . . . Fastest Speed 120 | 120 120 160 150 Average Speed 165 | 120 155 160 175 Slowest Speed 200 | 120 160 160 200 Overloaded Moves . | . . . . Propulsion Burnouts . | . . . . Robots Hopped . | . . . . Cave-ins Triggered . | . . . . Exploration Rate (%) 53 | 2 42 96 72 Regions Visited 3 Branch Regions 2 Pre-discovered Areas 3 | . 1 1 1 Known Exits Taken 1 | . 1 . . Unknown Exits Taken 2 | 1 . 1 . Scrap Searched 2 | . . 2 . Spaces Dug . | . . . . Terrain Destroyed 5 | . . . 5 Melee . | . . . . Projectile . | . . . . AOE 5 | . . . 5 Terrain Rammed . | . . . . Walls Destroyed . | . . . . Machines Disabled . | . . . . Actions | -11 -10 -10 -10 --------- Run | Scr Mat Min Exi Total 2114 | 16 384 826 888 Wait 112 | . 22 6 84 Move 1756 | 8 302 731 715 Hop . | . . . . Pick Up 44 | . 12 22 10 Fast Attach 5 | 1 1 1 2 Attach 15 | . 3 3 9 Detach 3 | . 1 . 2 Swap 14 | . 3 7 4 Drop 51 | . 9 20 22 Fire 109 | 7 31 36 35 Melee . | . . . . Ram . | . . . . Kick . | . . . . Crush . | . . . . Escape Stasis . | . . . . Rewire . | . . . . Trap 5 | . . . 5 Miscellaneous . | . . . . Route ------- -11/Scrapyard -10/Materials (discovered 2 exits: [*Mat] / *Min) -10/Mines (discovered 3 exits: [*Mat x2] / *Exi) -10/Exiles (discovered 2 exits: [*Min x2]) History --------- Turn | Location | Event 20 | -11/Scrapyard | Discovered new exit (range 3) 31 | -11/Scrapyard | Entered Materials 139 | -10/Materials | Discovered new exit (range 15) 150 | -10/Materials | Discovered new exit (range 10) 302 | -10/Materials | Build established: Mutant 316 | -10/Materials | Identified exit to Mines 634 | -10/Materials | Entered Mines 659 | -10/Mines | Met a Derelict bent on vengeance 695 | -10/Mines | Learned 2 Materials zone layouts 751 | -10/Mines | Discovered new exit (range 6) 845 | -10/Mines | Found a hidden stash of uninstalled traps 1172 | -10/Mines | Found a damaged Exp. Sensor Array with a note attached 1175 | -10/Mines | Found Prototype Device 1637 | -10/Mines | Discovered new exit (range 5) 1650 | -10/Mines | Assisted by bots powering up and referring to "LRC-V3" 1807 | -10/Mines | Escorted by a lone wolf Derelict 1827 | -10/Mines | Learned location of Storage (-8) 1933 | -10/Mines | Deemed a non-threat by the Exiles lab entrance 1933 | -10/Mines | Discovered new exit (range 5) 1942 | -10/Mines | Entered Exiles 1942 | -10/Exiles | Accompanied by 4 allies 1968 | -10/Exiles | Discovered new exit (range 15) 1986 | -10/Exiles | Met 8R-AWN 2008 | -10/Exiles | Met EX-HEX 2080 | -10/Exiles | Met EX-DEC 2120 | -10/Exiles | Learned location of Zion (-6) 2300 | -10/Exiles | Discovered new exit (range 10) 2478 | -10/Exiles | Build established: Hauler-Mutant 2533 | -10/Exiles | Met EX-BIN 2554 | -10/Exiles | Aligned with FarCom system 2556 | -10/Exiles | Given EX-Vault access code 2597 | -10/Exiles | Opened EX-Vault 2610 | -10/Exiles | Found Chronowheel 2615 | -10/Exiles | Found YOLO Cannon 2619 | -10/Exiles | Found Gui. Plasma Cannon 2656 | -10/Exiles | Warned to stay clear of 0b10 Research branches 3228 | -10/Exiles | Attacked by the Exiles 3329 | -10/Exiles | Core integrity fell below 50% 3386 | -10/Exiles | Core integrity fell below 20% 3388 | -10/Exiles | Lost 6 parts (1p2n1u2w) 3418 | -10/Exiles | Destroyed by 8R-AWN with 8R-AWN's Boregun Last Messages --------------- 03389_ Critical hit. 03389_ Lgt. Assault Rifle destroyed. 03389_ Penetrated by HV Slug. 03389_ Critical hit. 03394_ Penetrated by HV Slug. 03394_ Lgt. Armor Plating destroyed. 03394_ Penetrated by HV Slug. 03398_ Acquired Hcp. Storage Unit. 03398_ HV Slug penetrates Wall. 03398_ Penetrated by HV Slug. 03398_ Lgt. Nuclear Core destroyed. 03398_ HV Slug penetrates Wall. 03402_ Penetrated by HV Slug. 03406_ Critical hit. 03406_ Lgt. Assault Rifle destroyed. 03409_ Destroyed Prototype Protection. 03410_ Penetrated by HV Slug. 03414_ Critical hit. 03414_ Lgt. Assault Rifle destroyed. 03414_ Penetrated by HV Slug. Map ----- +----------------------------------------------------+ | ?????????????????????????????????????????????????? | | ?????????????????????????????????????????????????? | | ?????????????????????????????????????????????????? | | ?????????????????????????????????????????????????? | | ??????????#####??????????????????????????????????? | | ?????????## ##?????????????????????????????????? | | ?????????# #?????????????????????????????????? | | ?????????# < #?????????????????????????????????? | | ?????????# ###???????????????????????????????? | | ?????????# !!! #???????????????????????????????? | | ?????????# |]] #????????????????????????????????? | | ?????????## !! #????????????????????????????????? | | ??????????# ##???????????????????????????????? | | ??????????## #????????????#######????????????? | | ???????????# #######??????#!!! "#????????????? | | ???????????# #""##?????# "#????????????? | | ???????????## #?????# "#????????????? | | ????????????##" ##???## ""#????????????? | | ????????????#"" #####" ""#????????????? | | ????????????#### ## ""#????????????" | | ???????????????## #" #?????????????" | | ????????????????#"## #????????????"" | | ????????????????####### ###???????????"" | | ??????????????????????### #??????????? | | ????????????????########"] = %% ##???????????" | | ?????????? ; @!g! % ;;#?????????# | | ????????????????#! %! ###" ;#####???### | | ????????????????#! [%="#?##" * ""#####X# | | ????????????????#! !!##??#" * | | ????????????????# ! "###???#"# | | ????????????????####;#;###?????#### * | | ??????????????????# # #???????????### | | ??????????????????## #??????????????### | | ??????????????????? #?????????????????## | | ??????????????????##???????????????????## | | ????????????????????????????????????????##" | | ?????????????????????????????????????????#""" | | ????????????????????????????????????????##" | | ????????????????????????????????????????#"" | | ???????????????????????????????????????##""" | | ???????????????????????????????????????#""" | | ???????????????????????????????????????#""" | | ???????????????????????????????????????#"" ^ | | ???????????????????????????????????????#"""^ | | ???????????????????????????????????????#"" | | ???????????????????????????????????????##"" | | ????????????????????????????????????????#"""" | | ????????????????????????????????????????## | | ?????????????????????????????????????????#" | | ?????????????????????????????????????????#"""" | +----------------------------------------------------+ Best States ------------- Heat Dissipation 25 Energy Generation 14 Energy Capacity 250 Matter Stores 300 Matter Capacity 300 Sight Range 16 Terrain Scan Range 16 Terrain Scan Density 10 Armor Coverage 150 Weapon Shielding 33 Evasion (%) 40 Targeting Accuracy 5 Recoil Reduction 2 Item Schematics ----------------- None Robot Schematics ------------------ None Fabricated ------------ Nothing Alien Tech Used ----------------- None Achievements -------------- None Challenges ------------ None Game ------ Seed EnergyStormAutogun Manual? 0 Play Time 00:21:36 Cumulative 108.6 hours Start 2020.12.12 @ 15:57:27 End 2020.12.12 @ 16:17:10 Sessions 1 Manual Loads 0 Difficulty Rogue Special Mode None Game No. 101 Rogue 101 Adventurer 0 Explorer 0 Win Type - Total 0 Types 0/0/0/0/0/0/0/0/0 Lore% 48 Gallery% 57 Achievement% 52 Wizard Run 0 Options --------- ASCII 0 Keyboard 1 Movement Numpad Keybinds 0 Fullscreen 1 Font 12/Terminus Map View 83x54 Tactical HUD 1 Map Filters NONE Filters NONE Steam 1 RUN: 8a9a11dc-66f8-4a06-ae36-3a76465ca5c0